fUST/lending_fUST_20250609
["ID","MTS","AMOUNT","RATE_DAILY","PERIOD"]
[365117763,1749474637589,-440.0,0.00021917,4]
[365117764,1749474637600,-440.0,0.00021917,4]
[365117765,1749474637609,-440.0,0.00021917,4]
[365117766,1749474637619,-979.69,0.00021917,4]
[365117767,1749474637629,-440.0,0.00021917,4]
[365117768,1749474637639,-440.0,0.00021917,4]
[365117769,1749474637651,-430.0,0.00021917,4]
[365117770,1749474637661,-440.0,0.00021917,4]
[365117771,1749474637670,-472.24,0.00021917,4]
[365117772,1749474637679,-440.0,0.00021917,4]
[365117773,1749474637688,-440.0,0.00021917,4]
[365117774,1749474637698,-440.0,0.00021917,4]
[365117775,1749474637707,-403.0713649,0.00021917,4]
[365117776,1749474637714,-374.81654254,0.00021917,4]
[365117777,1749474637723,-440.0,0.00021917,4]
[365117778,1749474637733,-430.0,0.00021917,4]
[365117779,1749474637742,-440.0,0.00021917,4]
[365117780,1749474637750,-430.0,0.00021917,4]
[365117781,1749474637760,-323.59377873,0.00021917,4]
[365117782,1749474637769,-440.0,0.00021917,4]
[365117783,1749474637777,-430.0,0.00021917,4]
[365117784,1749474637786,-402.13392965,0.00021917,4]
[365117785,1749474637795,-496.57594371,0.00021917,4]
[365117786,1749474637804,-431.37283145,0.00021917,4]
[365117787,1749474637813,-440.0,0.00021917,4]
[365117788,1749474637822,-440.0,0.00021917,4]
[365117789,1749474637831,-430.0,0.00021917,4]
[365117790,1749474637840,-440.0,0.00021917,4]
[365117791,1749474637848,-1254.23,0.00021917,4]
[365117792,1749474637857,-440.0,0.00021917,4]
[365117793,1749474637866,-440.0,0.00021917,4]
[365117794,1749474637875,-440.0,0.00021917,4]
[365117795,1749474637886,-440.0,0.00021917,4]
[365117796,1749474637894,-370.0,0.00021917,4]
[365117797,1749474637901,-440.0,0.00021917,4]
[365117798,1749474637909,-440.0,0.00021917,4]
[365117799,1749474637917,-440.0,0.00021917,4]
[365117800,1749474637925,-502.51122778,0.00021917,4]
[365117801,1749474637933,-440.0,0.00021917,4]
[365117802,1749474637943,-440.0,0.00021917,4]
[365117803,1749474637952,-440.0,0.00021917,4]
[365117804,1749474637961,-440.0,0.00021917,4]
[365117805,1749474637970,-1920.52,0.00021917,4]
[365117806,1749474637979,-440.0,0.00021917,4]
[365117807,1749474637989,-170.79630806,0.00021917,4]
[365117808,1749474637999,-1636.47,0.00021917,4]
[365117809,1749474638009,-440.0,0.00021917,4]
[365117810,1749474638019,-440.0,0.00021917,4]
[365117811,1749474638028,-383.5806818,0.00021917,4]
[365117812,1749474638038,-440.0,0.00021917,4]
[365117813,1749474638047,-627.51,0.00021917,4]
[365117814,1749474638056,-440.0,0.00021917,4]
[365117817,1749474638157,-440.0,0.00021917,4]
[365117818,1749474638167,-440.0,0.00021917,4]
[365117819,1749474638177,-440.0,0.00021917,4]
[365117820,1749474638187,-440.0,0.00021917,4]
[365117821,1749474638197,-440.0,0.00021917,4]
[365117823,1749474638207,-736.45,0.00021917,4]
[365117825,1749474638217,-440.0,0.00021917,4]
[365117827,1749474638227,-440.0,0.00021917,4]
[365117829,1749474638237,-440.0,0.00021917,4]
[365117831,1749474638247,-435.21098425,0.00021917,4]
[365117832,1749474638256,-440.0,0.00021917,4]
[365117833,1749474638266,-440.0,0.00021917,4]
[365117834,1749474638275,-343.52137068,0.00021917,2]
[365117835,1749474638285,-430.0,0.00021917,4]
[365117836,1749474638295,-440.0,0.00021917,4]
[365117837,1749474638305,-440.0,0.00021917,4]
[365117838,1749474638315,-422.96283125,0.00021917,4]
[365117839,1749474638324,-440.0,0.00021917,4]
[365117840,1749474638334,-607.69,0.00021917,4]
[365117842,1749474638344,-440.0,0.00021917,4]
[365117844,1749474638353,-847.9,0.00021917,4]
[365117846,1749474638363,-440.0,0.00021917,4]
[365117848,1749474638373,-411.3351754,0.00021917,4]
[365117850,1749474638383,-440.0,0.00021917,4]
[365117852,1749474638392,-430.53010459,0.00021917,4]
[365117854,1749474638402,-440.0,0.00021917,4]
[365117856,1749474638412,-1920.28,0.00021917,4]
[365117858,1749474638422,-404.99658314,0.00021917,4]
[365117860,1749474638431,-440.0,0.00021917,4]
[365117862,1749474638441,-440.0,0.00021917,4]
[365117864,1749474638451,-440.0,0.00021917,4]
[365117866,1749474638460,-440.0,0.00021917,4]
[365117868,1749474638469,-430.0,0.00021917,4]
[365117870,1749474638479,-440.0,0.00021917,4]
[365117872,1749474638488,-440.0,0.00021917,4]
[365117874,1749474638499,-440.0,0.00021917,4]
[365117876,1749474638508,-440.0,0.00021917,4]
[365117878,1749474638518,-440.0,0.00021917,4]
[365117880,1749474638527,-2918.21,0.00021917,4]
[365117882,1749474638537,-440.0,0.00021917,4]
[365117884,1749474638547,-440.0,0.00021917,4]
[365117886,1749474638558,-440.0,0.00021917,4]
[365117888,1749474638568,-220.0,0.00021917,4]
[365117890,1749474638578,-440.0,0.00021917,4]
[365117892,1749474638588,-430.0,0.00021917,4]
[365117894,1749474638598,-350.0,0.00021917,2]
[365117896,1749474638609,-440.0,0.00021917,4]
[365117898,1749474638619,-430.0,0.00021917,4]
[365117899,1749474638629,-440.0,0.00021917,4]
[365117900,1749474638639,-440.0,0.00021917,4]
[365117901,1749474638650,-400.0,0.00021917,4]
[365117902,1749474638662,-430.0,0.00021917,4]
[365117903,1749474638672,-152.52649371,0.00021917,4]
[365117905,1749474638682,-440.0,0.00021917,4]
[365117907,1749474638692,-440.0,0.00021917,4]
[365117909,1749474638703,-440.0,0.00021917,4]
[365117911,1749474638715,-440.0,0.00021917,4]
[365117913,1749474638725,-430.0,0.00021917,4]
[365117915,1749474638735,-518.98034792,0.00021917,4]
[365117917,1749474638746,-430.0,0.00021917,4]
[365117919,1749474638755,-430.0,0.00021917,4]
[365117920,1749474638765,-480.32314719,0.00021917,4]
[365117921,1749474638775,-440.0,0.00021917,4]
[365117923,1749474638784,-440.0,0.00021917,4]
[365117925,1749474638793,-430.0,0.00021917,4]
[365117927,1749474638803,-430.0,0.00021917,4]
[365117929,1749474638812,-430.0,0.00021917,4]
[365117931,1749474638821,-1168.5,0.00021917,4]
[365117933,1749474638831,-440.0,0.00021917,4]
[365117935,1749474638840,-541.39,0.00021917,4]
[365117937,1749474638850,-440.0,0.00021917,4]
[365117939,1749474638859,-787.55,0.00021917,4]
[365117941,1749474638868,-554.84500388,0.00021917,4]
[365117943,1749474638878,-430.0,0.00021917,4]
[365117945,1749474638887,-440.0,0.00021917,4]
[365117947,1749474638897,-420.0,0.00021917,4]
[365117949,1749474638906,-2032.57,0.00021917,4]
[365117951,1749474638915,-440.0,0.00021917,4]
[365117953,1749474638925,-440.0,0.00021917,4]
[365117955,1749474638935,-440.0,0.00021917,4]
[365117957,1749474638944,-440.0,0.00021917,4]
[365117959,1749474638955,-430.0,0.00021917,4]
[365117962,1749474638965,-440.0,0.00021917,4]
[365117964,1749474638974,-440.0,0.00021917,4]
[365117966,1749474638984,-430.0,0.00021917,4]
[365117967,1749474638994,-440.0,0.00021917,4]
[365117969,1749474639003,-440.0,0.00021917,4]
[365117971,1749474639013,-440.0,0.00021917,4]
[365117973,1749474639023,-947.64,0.00021917,4]
[365117975,1749474639032,-440.0,0.00021917,4]
[365117977,1749474639042,-440.0,0.00021917,4]
[365117979,1749474639053,-430.0,0.00021917,4]
[365117982,1749474639063,-440.0,0.00021917,4]
[365117984,1749474639072,-440.0,0.00021917,4]
[365117986,1749474639082,-4353.31,0.00021917,4]
[365117988,1749474639092,-154.5448528,0.00021917,4]
[365117990,1749474639102,-440.0,0.00021917,4]
[365117992,1749474639112,-440.0,0.00021917,4]
[365117994,1749474639123,-408.19031292,0.00021917,4]
[365117996,1749474639132,-440.0,0.00021917,4]
[365117998,1749474639142,-400.14908512,0.00021917,4]
[365118000,1749474639151,-440.0,0.00021917,4]
[365118002,1749474639161,-1150.35,0.00021917,4]
[365118003,1749474639170,-420.0,0.00021917,4]
[365118004,1749474639179,-430.59395615,0.00021917,4]
[365118005,1749474639188,-152.05695041,0.00021971,2]
[365118006,1749474639197,-151.0,0.00021971,2]
[365118007,1749474639206,-151.0,0.00021971,2]
[365118008,1749474639216,-168.16788446,0.00021971,2]
[365118009,1749474639225,-151.0,0.00021971,2]
[365118010,1749474639234,-152.25408281,0.00021971,2]
[365118011,1749474639243,-152.02844073,0.00021971,2]
[365118012,1749474639252,-152.46506258,0.00021971,2]
[365118013,1749474639261,-151.0,0.00021971,2]
[365118014,1749474639270,-151.0,0.00021971,2]
[365118015,1749474639279,-500.0,0.00021971,2]
[365118016,1749474639288,-151.0,0.00021971,2]
[365118017,1749474639297,-151.0,0.00021971,2]
[365118018,1749474639306,-500.0,0.00021971,2]
[365118019,1749474639315,-500.0,0.00021973,2]
[365118020,1749474639324,-500.0,0.00021973,2]
[365118021,1749474639333,-500.0,0.00021973,2]
[365118022,1749474639341,-500.0,0.00021973,2]
[365118023,1749474639351,-500.0,0.00021973,2]
[365118024,1749474639360,-216.01084162,0.00021973,2]
[365118025,1749474639369,-542.82826175,0.00021973,2]
[365118026,1749474639378,-500.0,0.00021973,2]
[365118027,1749474639387,-500.0,0.00021973,2]
[365118028,1749474639396,-500.0,0.00021973,2]
[365118029,1749474639406,-500.0,0.00021973,2]
[365118030,1749474639415,-500.0,0.00021973,2]
[365118031,1749474639424,-500.0,0.00021973,2]
[365118033,1749474639433,-649.03949317,0.00021973,2]
[365118035,1749474639441,-500.0,0.00021973,2]
[365118038,1749474639460,-500.0,0.00021973,2]
[365118041,1749474639470,-585.15538902,0.00021973,2]
[365118043,1749474639480,-419.92773648,0.00021973,2]
[365118045,1749474639490,-500.0,0.00021973,2]
[365118047,1749474639499,-502.35685158,0.00021973,2]
[365118049,1749474639509,-151.0,0.00021998,2]
[365118051,1749474639519,-261.53844804,0.00021998,2]
[365118053,1749474639529,-152.32885981,0.00021998,2]
[365118055,1749474639538,-199.67622817,0.00021998,2]
[365118057,1749474639548,-510.48572547,0.00021998,2]
[365118059,1749474639558,-151.0,0.00021998,2]
[365118061,1749474639568,-509.82172538,0.00021998,2]
[365118063,1749474639577,-1811.47,0.00022,7]
[365118065,1749474639587,-1267.0,0.00022,2]
[365118067,1749474639598,-1826.05776513,0.00022003,6]
[365118069,1749474639608,-500.0,0.00022007,4]
[365118072,1749474639617,-2187.98593345,0.00022023,2]
[365118074,1749474639627,-203.45482214,0.00022026,2]
[365118076,1749474639636,-151.0,0.00022026,2]
[365118078,1749474639646,-200.0,0.00022041,2]
[365118080,1749474639659,-2750.0,0.00022044,7]
[365118082,1749474639669,-699.60157727,0.00022049,2]
[365118084,1749474639679,-151.0,0.00022053,2]
[365118086,1749474639689,-3081.91,0.00022066,2]
[365118088,1749474639700,-245.0,0.00022081,2]
[365118090,1749474639710,-1826.05776513,0.00022107,6]
[365118092,1749474639720,-500.0,0.00022172,4]
[365118094,1749474639730,-500.0,0.00022173,2]
[365118096,1749474639740,-500.0,0.00022173,2]
[365118098,1749474639750,-500.0,0.00022173,2]
[365118100,1749474639760,-539.80823797,0.00022173,2]
[365118102,1749474639769,-500.0,0.00022173,2]
[365118104,1749474639778,-227.42880251,0.00022173,2]
[365118106,1749474639788,-500.0,0.00022173,2]
[365118108,1749474639797,-500.0,0.00022173,2]
[365118110,1749474639808,-500.0,0.00022173,2]
[365118112,1749474639818,-502.60008131,0.00022173,2]
[365118114,1749474639827,-500.0,0.00022173,2]
[365118116,1749474639838,-500.0,0.00022173,2]
[365118119,1749474639848,-500.0,0.00022173,2]
[365118120,1749474639858,-500.0,0.00022173,2]
[365118122,1749474639868,-513.98861648,0.00022173,2]
[365118124,1749474639877,-500.0,0.00022173,2]
[365118126,1749474639887,-500.0,0.00022173,2]
[365118129,1749474639898,-500.0,0.00022173,2]
[365118131,1749474639908,-500.0,0.00022173,2]
[365118133,1749474639918,-500.0,0.0002219,4]
[365118135,1749474639928,-500.0,0.0002219,4]
[365118137,1749474639938,-500.0,0.0002219,4]
[365118139,1749474639948,-500.0,0.0002219,4]
[365118141,1749474639958,-477.21448293,0.00022191,4]
[365118143,1749474639967,-440.0,0.00022191,4]
[365118145,1749474639977,-440.0,0.00022191,4]
[365118147,1749474639986,-290.0,0.00022191,4]
[365118149,1749474639996,-174.64014863,0.00022191,4]
[365118151,1749474640006,-420.0,0.00022191,4]
[365118153,1749474640016,-440.0,0.00022191,4]
[365118155,1749474640026,-440.0,0.00022191,4]
[365118157,1749474640036,-420.0,0.00022191,4]
[365118160,1749474640045,-380.0,0.00022191,4]
[365118162,1749474640056,-440.0,0.00022191,4]
[365118164,1749474640065,-440.0,0.00022191,4]
[365118167,1749474640078,-440.0,0.00022191,4]
[365118184,1749474640212,-440.0,0.00022191,4]
[365118186,1749474640223,-440.0,0.00022191,4]
[365118188,1749474640232,-440.0,0.00022191,4]
[365118190,1749474640242,-440.0,0.00022191,4]
[365118192,1749474640251,-440.0,0.00022191,4]
[365118195,1749474640263,-440.0,0.00022191,4]
[365118196,1749474640272,-209.87853009,0.00022191,4]
[365118198,1749474640282,-440.0,0.00022191,4]
[365118201,1749474640291,-440.0,0.00022191,4]
[365118203,1749474640302,-440.0,0.00022191,4]
[365118205,1749474640312,-440.0,0.00022191,4]
[365118207,1749474640321,-419.62741147,0.00022191,4]
[365118209,1749474640331,-487.64112608,0.00022191,4]
[365118211,1749474640340,-440.0,0.00022191,4]
[365118213,1749474640350,-440.0,0.00022191,4]
[365118215,1749474640359,-440.0,0.00022191,4]
[365118217,1749474640370,-585.15499267,0.00022191,4]
[365118219,1749474640379,-440.0,0.00022191,4]
[365118221,1749474640389,-420.0,0.00022191,4]
[365118223,1749474640399,-440.0,0.00022191,4]
[365118225,1749474640410,-391.70170255,0.00022191,4]
[365118227,1749474640420,-410.0,0.00022191,4]
[365118229,1749474640431,-440.0,0.00022191,4]
[365118231,1749474640441,-440.0,0.00022191,4]
[365118233,1749474640451,-266.13882674,0.00022191,4]
[365118235,1749474640460,-440.0,0.00022191,4]
[365118237,1749474640469,-487.60181683,0.00022191,4]
[365118239,1749474640479,-440.0,0.00022191,4]
[365118241,1749474640489,-440.0,0.00022191,4]
[365118243,1749474640500,-440.0,0.00022191,4]
[365118245,1749474640510,-440.0,0.00022191,4]
[365118246,1749474640520,-440.0,0.00022191,4]
[365118247,1749474640530,-440.0,0.00022191,4]
[365118248,1749474640540,-440.0,0.00022191,4]
[365118249,1749474640550,-509.74083826,0.00022191,4]
[365118250,1749474640560,-440.0,0.00022191,4]
[365118251,1749474640570,-440.0,0.00022191,4]
[365118252,1749474640580,-410.0,0.00022191,4]
[365118253,1749474640590,-440.0,0.00022191,4]
[365118254,1749474640600,-343.93283531,0.00022191,4]
[365118255,1749474640611,-506.8156173,0.00022191,4]
[365118256,1749474640621,-500.0,0.00022191,4]
[365118257,1749474640631,-410.0,0.00022191,4]
[365118258,1749474640640,-440.0,0.00022191,4]
[365118259,1749474640651,-284.2877493,0.00022191,4]
[365118260,1749474640663,-440.0,0.00022191,4]
[365118261,1749474640674,-440.0,0.00022191,4]
[365118262,1749474640684,-440.0,0.00022191,4]
[365118263,1749474640694,-440.0,0.00022191,4]
[365118264,1749474640704,-420.0,0.00022191,4]
[365118265,1749474640714,-547.93213054,0.00022191,4]
[365118266,1749474640725,-440.0,0.00022191,4]
[365118267,1749474640744,-504.75244903,0.00022191,4]
[365118268,1749474640754,-440.0,0.00022191,4]
[365118269,1749474640764,-295.77096196,0.00022191,4]
[365118270,1749474640774,-440.0,0.00022191,4]
[365118271,1749474640783,-170.25169962,0.00022191,4]
[365118272,1749474640793,-440.0,0.00022191,4]
[365118273,1749474640803,-440.0,0.00022191,4]
[365118274,1749474640813,-440.0,0.00022191,4]
[365118275,1749474640823,-440.0,0.00022191,4]
[365118276,1749474640833,-440.0,0.00022191,4]
[365118277,1749474640843,-440.0,0.00022191,4]
[365118278,1749474640853,-440.0,0.00022191,4]
[365118279,1749474640863,-440.0,0.00022191,4]
[365118281,1749474640872,-420.0,0.00022191,4]
[365118283,1749474640881,-440.0,0.00022191,4]
[365118284,1749474640891,-259.71971831,0.00022191,4]
[365118285,1749474640901,-440.0,0.00022191,4]
[365118286,1749474640911,-440.0,0.00022191,4]
[365118287,1749474640920,-440.0,0.00022191,4]
[365118288,1749474640931,-440.0,0.00022191,4]
[365118289,1749474640940,-440.0,0.00022191,4]
[365118290,1749474640950,-440.0,0.00022191,4]
[365118292,1749474640960,-440.0,0.00022191,4]
[365118294,1749474640970,-440.0,0.00022191,4]
[365118295,1749474640980,-440.0,0.00022191,4]
[365118297,1749474640989,-440.0,0.00022191,4]
[365118298,1749474640999,-420.0,0.00022191,4]
[365118299,1749474641008,-440.0,0.00022191,4]
[365118300,1749474641018,-440.0,0.00022191,4]
[365118302,1749474641028,-440.0,0.00022191,4]
[365118304,1749474641037,-440.0,0.00022191,4]
[365118305,1749474641047,-440.0,0.00022191,4]
[365118306,1749474641057,-404.0,0.00022191,4]
[365118307,1749474641067,-470.0,0.00022191,4]
[365118308,1749474641076,-440.0,0.00022191,4]
[365118309,1749474641086,-440.0,0.00022191,4]
[365118310,1749474641096,-440.0,0.00022191,4]
[365118311,1749474641106,-538.64,0.00022191,4]
[365118312,1749474641116,-440.0,0.00022191,4]
[365118313,1749474641125,-440.0,0.00022191,4]
[365118314,1749474641136,-440.0,0.00022191,4]
[365118315,1749474641146,-440.0,0.00022191,4]
[365118316,1749474641156,-482.40494254,0.00022191,4]
[365118317,1749474641166,-440.0,0.00022191,4]
[365118318,1749474641176,-440.0,0.00022191,4]
[365118319,1749474641186,-440.0,0.00022191,4]
[365118321,1749474641195,-440.0,0.00022191,4]
[365118322,1749474641205,-440.0,0.00022191,4]
[365118323,1749474641215,-334.73981873,0.00022191,4]
[365118324,1749474641224,-440.0,0.00022191,4]
[365118325,1749474641234,-440.0,0.00022191,4]
[365118326,1749474641244,-440.0,0.00022191,4]
[365118327,1749474641254,-440.0,0.00022191,4]
[365118328,1749474641263,-440.0,0.00022191,4]
[365118329,1749474641273,-440.0,0.00022191,4]
[365118330,1749474641283,-440.0,0.00022191,4]
[365118331,1749474641293,-440.0,0.00022191,4]
[365118332,1749474641303,-410.0,0.00022191,4]
[365118333,1749474641313,-420.0,0.00022191,4]
[365118334,1749474641323,-440.0,0.00022191,4]
[365118335,1749474641333,-440.0,0.00022191,4]
[365118336,1749474641343,-431.26164576,0.00022191,4]
[365118337,1749474641352,-440.0,0.00022191,4]
[365118338,1749474641364,-440.0,0.00022191,2]
[365118339,1749474641373,-420.0,0.00022191,4]
[365118340,1749474641382,-440.0,0.00022191,4]
[365118341,1749474641391,-440.0,0.00022191,4]
[365118342,1749474641409,-440.0,0.00022191,4]
[365118343,1749474641422,-430.0,0.00022191,4]
[365118344,1749474641432,-212.34259664,0.00022191,4]
[365118345,1749474641443,-440.0,0.00022191,4]
[365118346,1749474641453,-440.0,0.00022191,4]
[365118347,1749474641463,-280.93687703,0.00022191,4]
[365118348,1749474641473,-440.0,0.00022191,4]
[365118349,1749474641483,-420.0,0.00022191,4]
[365118350,1749474641493,-440.0,0.00022191,4]
[365118351,1749474641503,-440.0,0.00022191,4]
[365118352,1749474641513,-440.0,0.00022191,4]
[365118353,1749474641523,-420.0,0.00022191,4]
[365118354,1749474641533,-425.20703047,0.00022191,4]
[365118355,1749474641543,-440.0,0.00022191,4]
[365118356,1749474641553,-440.0,0.00022191,4]
[365118357,1749474641563,-440.0,0.00022191,4]
[365118358,1749474641573,-413.61387951,0.00022191,4]
[365118359,1749474641583,-440.0,0.00022191,4]
[365118360,1749474641594,-420.0,0.00022191,4]
[365118361,1749474641604,-440.0,0.00022191,4]
[365118362,1749474641614,-440.0,0.00022191,4]
[365118363,1749474641626,-440.0,0.00022191,4]
[365118364,1749474641636,-440.0,0.00022191,4]
[365118365,1749474641648,-440.0,0.00022191,4]
[365118366,1749474641665,-440.0,0.00022191,4]
[365118367,1749474641675,-420.0,0.00022191,4]
[365118368,1749474641685,-440.0,0.00022191,4]
[365118369,1749474641697,-440.0,0.00022191,4]
[365118370,1749474641707,-440.0,0.00022191,4]
[365118371,1749474641717,-440.0,0.00022191,4]
[365118372,1749474641730,-440.0,0.00022191,4]
[365118373,1749474641740,-440.0,0.00022191,4]
[365118374,1749474641751,-440.0,0.00022191,4]
[365118375,1749474641761,-440.0,0.00022191,4]
[365118376,1749474641772,-440.0,0.00022191,4]
[365118377,1749474641782,-440.0,0.00022191,4]
[365118378,1749474641792,-440.0,0.00022191,4]
[365118379,1749474641801,-583.75810959,0.00022191,4]
[365118380,1749474641812,-440.0,0.00022191,4]
[365118381,1749474641822,-440.0,0.00022191,4]
[365118382,1749474641832,-8516.89,0.00022191,4]
[365118383,1749474641842,-440.0,0.00022191,4]
[365118384,1749474641852,-408.77095844,0.00022191,4]
[365118385,1749474641862,-448.30399999,0.00022191,4]
[365118386,1749474641871,-440.0,0.00022191,4]
[365118387,1749474641881,-440.0,0.00022191,4]
[365118388,1749474641891,-440.0,0.00022191,4]
[365118389,1749474641902,-440.0,0.00022191,4]
[365118390,1749474641912,-532.02,0.00022191,4]
[365118391,1749474641922,-440.0,0.00022191,4]
[365118392,1749474641931,-653.57,0.00022191,4]
[365118393,1749474641941,-420.0,0.00022191,4]
[365118394,1749474641951,-3787.32,0.00022191,4]
[365118395,1749474641962,-410.0,0.00022191,4]
[365118396,1749474641972,-440.0,0.00022191,4]
[365118397,1749474641981,-440.0,0.00022191,4]
[365118398,1749474641991,-440.0,0.00022191,4]
[365118399,1749474642001,-1938.33,0.00022191,4]
[365118400,1749474642010,-547.08,0.00022191,4]
[365118401,1749474642020,-440.0,0.00022191,4]
[365118402,1749474642030,-440.0,0.00022191,4]
[365118403,1749474642039,-440.0,0.00022191,4]
[365118404,1749474642049,-420.0,0.00022191,4]
[365118405,1749474642167,-440.0,0.00022191,4]
[365118406,1749474642177,-440.0,0.00022191,4]
[365118407,1749474642187,-440.0,0.00022191,4]
[365118408,1749474642197,-695.15,0.00022191,4]
[365118409,1749474642207,-4898.39,0.00022191,4]
[365118410,1749474642217,-440.0,0.00022191,4]
[365118411,1749474642228,-440.0,0.00022191,4]
[365118412,1749474642238,-440.0,0.00022191,4]
[365118413,1749474642249,-440.0,0.00022191,4]
[365118414,1749474642258,-440.0,0.00022191,4]
[365118415,1749474642268,-663.04,0.00022191,4]
[365118416,1749474642277,-440.0,0.00022191,4]
[365118417,1749474642288,-440.0,0.00022191,4]
[365118418,1749474642298,-440.0,0.00022191,4]
[365118419,1749474642308,-440.0,0.00022191,4]
[365118420,1749474642318,-440.0,0.00022191,4]
[365118421,1749474642328,-420.0,0.00022191,4]
[365118422,1749474642338,-440.0,0.00022191,4]
[365118423,1749474642347,-440.0,0.00022191,4]
[365118424,1749474642357,-440.0,0.00022191,4]
[365118425,1749474642367,-440.0,0.00022191,4]
[365118426,1749474642377,-686.85,0.00022191,4]
[365118427,1749474642387,-1865.17,0.00022191,4]
[365118428,1749474642397,-350.19880959,0.00022191,4]
[365118429,1749474642407,-440.0,0.00022191,4]
[365118430,1749474642417,-440.0,0.00022191,4]
[365118431,1749474642428,-440.0,0.00022191,4]
[365118432,1749474642438,-440.0,0.00022191,4]
[365118433,1749474642448,-395.04103203,0.00022191,4]
[365118434,1749474642457,-440.0,0.00022191,4]
[365118435,1749474642467,-420.0,0.00022191,4]
[365118436,1749474642477,-4114.26,0.00022191,4]
[365118437,1749474642486,-995.36,0.00022191,4]
[365118438,1749474642496,-410.11199095,0.00022191,4]
[365118439,1749474642506,-440.0,0.00022191,4]
[365118440,1749474642516,-2745.12,0.00022191,4]
[365118441,1749474642526,-4986.72,0.00022191,4]
[365118442,1749474642536,-1090.86,0.00022191,4]
[365118443,1749474642545,-440.0,0.00022191,4]
[365118444,1749474642555,-440.0,0.00022191,4]
[365118445,1749474642565,-440.0,0.00022191,4]
[365118446,1749474642575,-440.0,0.00022191,4]
[365118447,1749474642585,-588.56,0.00022191,4]
[365118448,1749474642595,-535.6537343,0.00022191,4]
[365118449,1749474642605,-440.0,0.00022191,4]
[365118450,1749474642614,-440.0,0.00022191,4]
[365118451,1749474642624,-979.69,0.00022191,4]
[365118452,1749474642633,-420.0,0.00022191,4]
[365118453,1749474642643,-440.0,0.00022191,4]
[365118454,1749474642654,-440.0,0.00022191,4]
[365118455,1749474642665,-472.24,0.00022191,4]
[365118456,1749474642675,-440.0,0.00022191,4]
[365118457,1749474642684,-440.0,0.00022191,4]
[365118458,1749474642694,-440.0,0.00022191,4]
[365118459,1749474642706,-440.0,0.00022191,4]
[365118460,1749474642715,-440.0,0.00022191,4]
[365118461,1749474642725,-440.0,0.00022191,4]
[365118462,1749474642736,-440.0,0.00022191,4]
[365118463,1749474642746,-440.0,0.00022191,4]
[365118464,1749474642756,-440.0,0.00022191,4]
[365118465,1749474642765,-1254.23,0.00022191,4]
[365118466,1749474642775,-440.0,0.00022191,4]
[365118467,1749474642784,-393.60472095,0.00022191,4]
[365118468,1749474642794,-440.0,0.00022191,4]
[365118469,1749474642804,-440.0,0.00022191,4]
[365118470,1749474642814,-440.0,0.00022191,4]
[365118471,1749474642825,-440.0,0.00022191,4]
[365118472,1749474642835,-333.26758842,0.00022191,4]
[365118473,1749474642845,-440.0,0.00022191,4]